bitfinex/quotes_SOLUSD_20250102
["timestamp","ask_amount","ask_price","bid_price","bid_amount"]
[1735781849630,5.69661329,197.26,197.17,23.776884]
[1735781849838,12.36101329,197.31,197.19,23.776884]
[1735781850045,20.0,197.28,197.17,23.776884]
[1735781851343,20.0,197.28,197.19,23.776884]
[1735781852061,25.69661329,197.28,197.13,1.5705]
[1735781852233,25.69661329,197.28,197.14,23.776884]
[1735781852638,20.0,197.24,197.14,23.776884]
[1735781852959,20.0,197.24,197.13,1.5705]
[1735781853167,20.0,197.24,197.13,2.33120582]
[1735781853336,20.0,197.24,197.14,23.776884]
[1735781855464,20.0,197.24,197.16,23.776884]
[1735781856361,20.0,197.24,197.17,0.76057127]
[1735781856539,20.0,197.24,197.18,23.776884]
[1735781858175,20.0,197.24,197.16,23.776884]
[1735781858643,20.0,197.24,197.13,1.5705]
[1735781858837,20.0,197.24,197.13,2.33115882]
[1735781859043,20.0,197.24,197.14,23.776884]
[1735781859369,20.0,197.24,197.16,23.776884]
[1735781860454,20.0,197.24,197.14,23.776884]
[1735781861041,20.0,197.24,197.16,23.776884]
[1735781861747,20.0,197.24,197.14,23.776884]
[1735781861952,20.0,197.21,197.14,23.776884]
[1735781863264,20.0,197.21,197.09,2.30594035]
[1735781863655,20.0,197.21,197.1,23.776884]
[1735781863856,1.0,197.2,197.04,1.5452]
[1735781864059,20.0,197.17,197.04,1.5452]
[1735781864258,20.0,197.17,197.05,0.76094839]
[1735781864460,20.0,197.17,197.08,15.49097667]
[1735781864660,6.69661329,197.25,197.1,39.26786067]
[1735781864867,6.69661329,197.25,197.12,23.776884]
[1735781865065,20.0,197.22,197.12,23.776884]
[1735781865455,24.56324708,197.22,197.12,23.776884]
[1735781865697,24.56324708,197.22,197.09,0.76079742]
[1735781865979,24.56324708,197.22,197.1,23.776884]
[1735781866281,24.56324708,197.22,197.11,0.7607621]
[1735781866463,24.56324708,197.22,197.12,23.776884]
[1735781867284,24.56324708,197.22,197.14,23.776884]
[1735781867489,1.0,197.25,197.16,23.776884]
[1735781867655,6.3597,197.26,197.18,23.776884]
[1735781868175,6.3597,197.26,197.17,0.7605406]
[1735781868352,6.3597,197.26,197.13,2.30576065]
[1735781868558,20.0,197.23,197.13,17.79673732]
[1735781868761,20.0,197.23,197.14,23.776884]
[1735781868984,20.0,197.23,197.16,23.776884]
[1735781869975,20.0,197.23,197.16,0.76053518]
[1735781871977,20.0,197.23,197.17,23.776884]
[1735781872488,4.70299956,197.27,197.18,0.76051825]
[1735781872782,5.69661329,197.28,197.18,16.25149492]
[1735781872985,5.39529167,197.34,197.19,23.776884]
[1735781873165,5.69661329,197.32,197.19,23.776884]
[1735781873687,5.69661329,197.32,197.21,23.776884]
[1735781873857,20.0,197.29,197.23,23.776884]
[1735781874057,20.0,197.29,197.2,0.76031254]
[1735781874274,5.69661329,197.32,197.21,23.776884]
[1735781874681,20.0,197.29,197.21,23.776884]
[1735781874880,5.69661329,197.32,197.23,23.776884]
[1735781875268,20.0,197.29,197.23,23.776884]
[1735781875582,5.69661329,197.32,197.25,23.776884]
[1735781875783,7.3597,197.35,197.25,23.776884]
[1735781876087,7.3597,197.35,197.22,17.03617667]
[1735781876284,7.3597,197.35,197.23,23.776884]
[1735781876785,20.0,197.32,197.23,23.776884]
[1735781878493,20.0,197.32,197.23,24.53716721]
[1735781880187,20.0,197.32,197.22,1.5452]
[1735781881194,20.0,197.32,197.23,23.776884]
[1735781882867,20.0,197.32,197.22,1.5452]
[1735781885765,20.0,197.32,197.23,23.776884]
[1735781888088,20.0,197.32,197.22,1.5452]
[1735781888089,25.2912488,197.32,197.22,1.5452]
[1735781888388,20.0,197.28,197.22,1.5452]
[1735781889886,20.0,197.28,197.2,6.4477]
[1735781890190,25.2912488,197.28,197.2,6.4477]
[1735781895387,7.83619278,197.34,197.21,40.02835374]
[1735781895714,7.3597,197.35,197.22,15.49097667]
[1735781895903,24.00914546,197.36,197.23,16.2512091]
[1735781896202,20.0,197.33,197.23,16.2512091]
[1735781896387,20.0,197.33,197.23,24.53711643]
[1735781896790,20.0,197.33,197.24,23.776884]
[1735781896993,20.0,197.33,197.25,1.659]
[1735781897498,11.45301607,197.36,197.26,23.776884]
[1735781898218,20.0,197.33,197.26,23.776884]
[1735781898504,11.45301607,197.36,197.26,23.776884]
[1735781898680,20.0,197.33,197.26,23.776884]
[1735781899178,11.45301607,197.36,197.26,39.26786067]
[1735781899500,5.69661329,197.41,197.28,23.776884]
[1735781899696,5.69661329,197.41,197.3,23.776884]
[1735781899996,10.03791604,197.41,197.3,23.776884]
[1735781900584,20.0,197.38,197.3,23.776884]
[1735781904528,10.03791604,197.41,197.32,23.776884]
[1735781904815,20.0,197.38,197.32,23.776884]
[1735781906021,5.69661329,197.41,197.32,23.776884]
[1735781906515,20.0,197.38,197.32,23.776884]
[1735781909726,5.69661329,197.41,197.32,23.776884]
[1735781910607,4.34188845,197.45,197.32,23.776884]
[1735781910922,20.0,197.41,197.32,23.776884]
[1735781912723,20.0,197.41,197.32,24.53687265]
[1735781913234,5.69661329,197.44,197.32,24.53687265]
[1735781914833,20.0,197.41,197.32,23.776884]
[1735781915130,20.0,197.41,197.31,1.533]
[1735781915307,8.50317332,197.41,197.31,1.533]
[1735781915506,8.50317332,197.41,197.32,23.776884]
[1735781916703,4.34188845,197.41,197.31,1.533]
[1735781916929,20.0,197.37,197.31,1.533]
[1735781917132,25.69321101,197.37,197.31,1.533]
[1735781917800,5.75581708,197.39,197.31,1.533]
[1735781917801,5.69661329,197.36,197.31,1.533]
[1735781918414,20.0,197.33,197.23,7.6612]
[1735781918630,20.0,197.33,197.23,8.42141416]
[1735781918840,20.0,197.33,197.24,23.776884]
[1735781919334,20.0,197.33,197.26,23.776884]
[1735781920712,20.0,197.33,197.25,0.7602052]
[1735781920917,20.0,197.33,197.23,7.6612]
[1735781921922,20.0,197.34,197.23,7.6612]
[1735781922126,20.0,197.29,197.23,7.6612]
[1735781923006,5.69321101,197.29,197.23,1.525]
[1735781924851,5.69321101,197.29,197.18,7.6957]
[1735781925219,20.0,197.28,197.18,7.6957]
[1735781925548,20.0,197.26,197.18,7.6957]
[1735781926343,20.0,197.25,197.18,7.6957]
[1735781927822,20.0,197.25,197.18,1.5595]
[1735781928444,10.03509946,197.24,197.18,1.5595]
[1735781928651,20.0,197.21,197.18,1.5595]
[1735781929444,20.0,197.21,197.14,6.4787]
[1735781930639,20.0,197.18,197.13,1.5595]
[1735781930852,20.0,197.17,197.13,1.5595]
[1735781931761,4.34188845,197.24,197.14,23.776884]
[1735781931924,10.03850174,197.24,197.14,23.776884]
[1735781932244,20.0,197.21,197.14,23.776884]
[1735781932446,20.0,197.2,197.14,23.776884]
[1735781934851,20.0,197.2,197.13,1.5595]
[1735781935055,4.34188845,197.19,197.13,1.5595]
[1735781935258,20.0,197.16,197.13,1.5595]
[1735781939355,8.91194009,197.19,197.14,23.776884]
[1735781939661,5.69661329,197.26,197.16,23.776884]
[1735781939827,20.0,197.23,197.16,23.776884]
[1735781940228,10.03850174,197.26,197.14,23.776884]
[1735781940850,10.03850174,197.26,197.17,6.259]
[1735781941050,5.75640278,197.31,197.2,23.776884]
[1735781941360,11.45301607,197.31,197.22,23.776884]
[1735781941528,11.45301607,197.31,197.24,23.776884]
[1735781941727,20.0,197.28,197.24,23.776884]
[1735781942034,20.0,197.28,197.22,24.53719512]
[1735781942253,11.45301607,197.31,197.22,24.53719512]
[1735781943340,5.71993661,197.39,197.24,23.776884]
[1735781943537,11.45301607,197.36,197.24,24.53709726]
[1735781945244,20.0,197.33,197.24,24.53709726]
[1735781947344,20.0,197.33,197.24,23.776884]
[1735781948559,20.0,197.33,197.23,7.7919]
[1735781948759,20.0,197.33,197.24,23.776884]
[1735781949333,20.0,197.33,197.24,24.53721485]
[1735781950268,20.0,197.33,197.24,40.02819152]
[1735781950445,20.0,197.33,197.25,23.776884]
[1735781950779,20.0,197.33,197.26,0.76016556]
[1735781951456,20.0,197.33,197.25,23.776884]
[1735781951655,20.0,197.33,197.23,23.28287667]
[1735781951656,20.0,197.33,197.23,7.7919]
[1735781952055,20.0,197.33,197.24,23.776884]
[1735781952760,11.45301607,197.36,197.25,16.25122479]
[1735781953055,11.45301607,197.36,197.24,23.776884]
[1735781953643,20.0,197.33,197.24,23.776884]
[1735781953863,20.0,197.33,197.23,7.7919]
[1735781954353,4.16128487,197.33,197.23,1.5329]
[1735781954533,20.0,197.29,197.23,1.5329]
[1735781954935,20.0,197.29,197.24,23.776884]
[1735781959074,20.0,197.29,197.23,1.5329]
[1735781960879,20.0,197.29,197.24,23.776884]
[1735781961967,20.0,197.29,197.23,1.5329]
[1735781962664,11.45301607,197.28,197.18,7.7429]
[1735781962874,11.45301607,197.28,197.19,23.776884]
[1735781965179,5.69661329,197.28,197.21,23.776884]
[1735781965381,6.10306945,197.35,197.23,23.776884]
[1735781965578,20.0,197.32,197.23,23.776884]
[1735781966053,20.0,197.32,197.25,23.776884]
[1735781966450,6.10306945,197.35,197.25,0.7602837]
[1735781966650,9.57102099,197.35,197.23,1.6205]
[1735781966876,12.1463494,197.35,197.24,23.776884]
[1735781967864,20.0,197.31,197.23,1.6205]
[1735781968260,20.0,197.31,197.24,23.776884]
[1735781968563,6.04327995,197.34,197.24,40.02819511]
[1735781968866,6.04327995,197.34,197.24,24.53721844]
[1735781970464,6.04327995,197.34,197.24,40.02819511]
[1735781972569,6.04327995,197.34,197.24,24.53721844]
[1735781974397,6.04327995,197.34,197.24,23.776884]
[1735781974691,6.04327995,197.34,197.24,24.53716062]
[1735781984200,6.04327995,197.34,197.24,34.43988776]
[1735781985086,6.04327995,197.34,197.24,24.53716062]
[1735781985583,6.04327995,197.34,197.24,34.43988776]
[1735781986193,6.04327995,197.34,197.24,24.53716062]
[1735781987897,6.04327995,197.34,197.26,23.776884]
[1735781988074,6.04327995,197.34,197.28,23.776884]
[1735781989782,6.04327995,197.34,197.26,23.776884]
[1735781990702,6.04327995,197.34,197.28,23.776884]
[1735781991511,6.10306945,197.36,197.28,23.776884]
[1735781991670,20.0,197.36,197.28,23.776884]
[1735781992690,20.0,197.36,197.3,23.776884]
[1735781993195,20.0,197.36,197.27,23.776884]
[1735781993385,20.0,197.36,197.28,0.76007774]
[1735781994011,20.0,197.36,197.29,23.776884]
[1735781994507,3.46795154,197.36,197.23,2.38058602]
[1735781994709,12.1463494,197.35,197.23,2.38058602]
[1735781994875,12.1463494,197.35,197.24,23.776884]
[1735781995077,12.1463494,197.35,197.26,23.776884]
[1735781995308,12.1463494,197.35,197.28,23.776884]
[1735781996519,12.1463494,197.35,197.26,23.776884]
[1735781997510,12.1463494,197.35,197.28,33.67961114]
[1735781997699,7.83619278,197.4,197.3,23.776884]
[1735781997700,13.93926223,197.4,197.3,23.776884]
[1735781997903,19.98254218,197.4,197.3,23.776884]
[1735781998703,12.1463494,197.4,197.3,23.776884]
[1735781999018,6.10306945,197.4,197.3,23.776884]
[1735781999192,6.10306945,197.4,197.31,0.75996805]
[1735781999510,6.10306945,197.4,197.32,23.776884]
[1735782001806,6.10306945,197.4,197.27,0.7599543]
[1735782002114,6.10306945,197.4,197.28,33.67961114]
[1735782002318,6.10306945,197.4,197.3,23.776884]
[1735782002525,6.10306945,197.4,197.32,23.776884]
[1735782002711,7.83619278,197.45,197.38,9.90272714]
[1735782003014,7.83619278,197.45,197.41,9.90272714]
[1735782003187,7.83619278,197.45,197.42,34.43913754]
[1735782003620,1.0,197.51,197.42,34.43913754]
[1735782004301,6.3768,197.52,197.42,34.43913754]
[1735782004918,6.10306945,197.54,197.43,9.90272714]
[1735782005213,6.10306945,197.54,197.44,24.53629916]
[1735782005589,1.0,197.55,197.46,23.776884]
[1735782005790,117.54289178,197.63,197.48,9.90272714]
[1735782005791,6.10306945,197.59,197.48,9.90272714]
[1735782005997,6.10306945,197.59,197.49,10.66197534]
[1735782006305,6.10306945,197.59,197.5,23.776884]
[1735782006515,6.10306945,197.59,197.52,23.776884]
[1735782006714,11.5418494,197.63,197.53,0.75913202]
[1735782006894,11.5418494,197.63,197.54,23.776884]
[1735782007802,11.5418494,197.63,197.51,9.90272714]
[1735782008003,11.5418494,197.63,197.53,23.776884]
[1735782009418,11.5418494,197.63,197.55,23.776884]
[1735782009590,6.10306945,197.63,197.55,23.776884]
[1735782010589,6.10306945,197.63,197.55,0.75903353]
[1735782011911,5.43877995,197.67,197.56,23.776884]
[1735782012104,5.43877995,197.67,197.57,0.75893175]
[1735782012314,20.0,197.64,197.58,23.776884]
[1735782013523,20.0,197.65,197.58,23.776884]
[1735782015620,6.10306945,197.65,197.54,0.75894445]
[1735782015839,4.67695154,197.65,197.52,1.6592]
[1735782016132,9.43400174,197.64,197.52,1.6592]
[1735782016301,9.43400174,197.64,197.53,23.776884]
[1735782016724,9.43400174,197.64,197.52,1.6592]
[1735782017510,9.43400174,197.64,197.53,23.776884]
[1735782018425,9.43400174,197.64,197.55,23.776884]
[1735782018926,20.0,197.66,197.57,23.776884]
[1735782019821,20.0,197.66,197.54,23.776884]
[1735782020331,28.67217333,197.66,197.54,23.776884]
[1735782020858,9.43400174,197.65,197.52,1.6592]
[1735782020999,9.43400174,197.65,197.53,24.53608184]
[1735782021195,9.43400174,197.65,197.54,15.42865349]
[1735782021398,3.99522179,197.65,197.56,23.776884]
[1735782021802,20.0,197.66,197.56,23.776884]
[1735782022426,20.0,197.66,197.58,23.776884]
[1735782022624,20.0,197.66,197.55,23.776884]
[1735782023532,20.0,197.66,197.57,23.776884]
[1735782024628,23.99522179,197.66,197.52,1.6592]
[1735782024838,3.99522179,197.65,197.52,1.6592]
[1735782025042,20.0,197.62,197.53,23.776884]
[1735782026532,20.0,197.62,197.52,1.6592]
[1735782026903,20.0,197.62,197.53,23.776884]
[1735782027529,21.0,197.62,197.49,0.75912417]
[1735782027705,20.0,197.58,197.47,1.6505]
[1735782028403,20.0,197.58,197.48,23.776884]
[1735782033927,20.0,197.58,197.49,0.75934445]
[1735782034125,20.0,197.58,197.5,23.776884]
[1735782035142,20.0,197.58,197.48,23.776884]
[1735782035919,20.0,197.58,197.5,23.776884]
[1735782036121,13.322726,197.61,197.5,23.776884]
[1735782036314,13.322726,197.61,197.52,23.776884]
[1735782036823,20.0,197.58,197.52,23.776884]
[1735782037449,20.0,197.58,197.5,23.776884]
[1735782037739,20.0,197.58,197.48,15.42865349]
[1735782037740,20.0,197.58,197.49,23.776884]
[1735782039612,20.0,197.58,197.47,1.6505]
[1735782040411,20.0,197.58,197.48,23.776884]
[1735782040812,20.0,197.58,197.49,0.75931665]
[1735782042325,1.0,197.62,197.52,59.20553749]
[1735782042517,1.0,197.62,197.54,23.776884]
[1735782043129,6.0606,197.66,197.56,23.776884]
[1735782043348,20.0,197.63,197.56,23.776884]
[1735782044033,6.0606,197.66,197.56,23.776884]
[1735782044242,6.0606,197.66,197.56,0.75904657]
[1735782049132,20.0,197.63,197.53,0.7589974]
[1735782049614,20.0,197.63,197.53,24.5358814]
[1735782049814,6.0606,197.66,197.55,15.42865349]
[1735782050018,6.0606,197.66,197.57,23.776884]
[1735782050718,7.10248374,197.67,197.57,23.776884]
[1735782051845,6.10248374,197.67,197.58,0.75893487]
[1735782052149,6.10248374,197.67,197.59,23.776884]
[1735782053759,20.0,197.67,197.61,23.776884]
[1735782056337,7.83619278,197.77,197.7,23.776884]
[1735782056533,7.83619278,197.77,197.76,33.64544631]
[1735782056751,6.16959278,197.77,197.76,33.64544631]
[1735782056928,4.50299278,197.77,197.76,34.40354155]
[1735782057245,173.10668954,197.91,197.79,48.776884]
[1735782057552,173.10668954,197.91,197.79,44.53487598]
[1735782057756,133.6879291,197.91,197.79,20.0]
[1735782057936,20.0,197.94,197.79,20.0]
[1735782058255,20.0,197.94,197.79,20.75807012]
[1735782058421,20.0,197.94,197.93,7.89771112]
[1735782058625,20.0,197.94,197.9,15.79542225]
[1735782058838,1.0,197.96,197.86,15.79542225]
[1735782059034,1.0,197.96,197.86,16.5658692]
[1735782059348,1.0,197.96,197.86,0.77044695]
[1735782059555,1.0,197.96,197.87,0.77040801]
[1735782059739,1.0,197.96,197.86,0.92448183]
[1735782060528,1.0,197.96,197.83,0.95534176]
[1735782060833,21.0,197.96,197.83,0.95534176]
[1735782061455,20.0,197.94,197.82,31.5908445]
[1735782062129,1.0,197.96,197.82,31.5908445]
[1735782062130,21.0,197.96,197.82,31.5908445]
[1735782062729,1.0,197.96,197.82,31.5908445]
[1735782062943,1.0,197.96,197.83,23.776884]
[1735782064442,1.0,197.96,197.81,16.14670452]
[1735782065154,1.0,197.96,197.81,24.5349298]
[1735782065355,1.0,197.96,197.82,39.16554272]
[1735782065544,1.0,197.96,197.83,0.75793201]
[1735782066258,1.0,197.96,197.82,23.776884]
[1735782069362,1.0,197.96,197.84,39.16554272]
[1735782069563,1.0,197.96,197.86,23.776884]
[1735782070270,6.0295,198.0,197.88,23.776884]
[1735782070569,6.0295,198.0,197.89,0.7576823]
[1735782070870,6.0295,198.0,197.87,15.38865872]
[1735782071557,6.0295,198.0,197.88,0.75780243]
[1735782071939,20.0,197.97,197.88,0.75780243]
[1735782072144,20.0,197.97,197.86,23.776884]
[1735782072544,20.0,197.97,197.83,0.75789296]
[1735782072944,20.0,197.97,197.84,23.776884]
[1735782073163,20.0,197.97,197.83,0.75789296]
[1735782073164,1.655,197.96,197.83,0.75789296]
[1735782073347,20.0,197.95,197.75,6.93438728]
[1735782073546,20.0,197.93,197.76,23.776884]
[1735782073747,20.0,197.93,197.78,23.776884]
[1735782073950,20.0,197.89,197.77,0.7581361]
[1735782074157,20.0,197.89,197.75,6.1764]
[1735782074158,20.0,197.89,197.74,0.75817544]
[1735782074476,24.50818489,197.89,197.75,23.776884]
[1735782074773,24.50818489,197.89,197.74,0.75817544]
[1735782075065,1.655,197.88,197.75,23.776884]
[1735782076044,1.655,197.88,197.7,6.1764]
[1735782076045,20.0,197.87,197.71,0.75829156]
[1735782076263,20.0,197.85,197.71,0.75829156]
[1735782077464,4.50818489,197.87,197.69,0.758477]
[1735782077465,20.0,197.81,197.69,0.758477]
[1735782077870,20.0,197.81,197.7,23.776884]
[1735782078070,20.0,197.81,197.69,0.75844302]
[1735782079159,20.0,197.81,197.67,0.75851172]
[1735782079160,1.655,197.8,197.67,0.75851172]
[1735782080167,20.0,197.79,197.66,23.776884]
[1735782080371,20.0,197.79,197.65,0.75860328]
[1735782080568,24.50818489,197.79,197.63,0.7586195]
[1735782080764,6.4025,197.74,197.63,0.7586195]
[1735782080966,20.0,197.7,197.61,0.75875585]
[1735782081163,20.0,197.7,197.58,0.75893442]
[1735782081969,20.0,197.71,197.59,23.776884]
[1735782082154,1.6293,197.73,197.63,15.38865872]
[1735782082358,1.6293,197.73,197.64,0.75866508]
[1735782082671,1.6293,197.73,197.62,15.38865872]
[1735782082878,1.6293,197.73,197.63,0.75875981]
[1735782083184,1.6293,197.73,197.63,16.14741853]
[1735782083479,1.6293,197.73,197.64,23.776884]
[1735782083678,5.4851488,197.8,197.68,15.38865872]
[1735782083679,8.0318,197.79,197.68,15.38865872]
[1735782083976,8.0318,197.84,197.72,23.776884]
[1735782084186,8.0318,197.84,197.73,0.75835977]
[1735782084371,8.0318,197.84,197.65,29.0035]
[1735782084372,8.72906115,197.84,197.69,0.75842132]
[1735782084677,20.0,197.79,197.64,0.75854727]
[1735782085087,20.0,197.79,197.65,23.776884]
[1735782085380,20.0,197.8,197.67,23.776884]
[1735782085566,20.0,197.8,197.68,0.75851479]
[1735782085958,20.0,197.8,197.6,58.86757663]
[1735782085959,20.0,197.8,197.65,23.776884]
[1735782086158,20.0,197.8,197.65,24.53553841]
[1735782087084,1.6293,197.75,197.63,0.75865267]
[1735782087268,6.4025,197.74,197.61,0.75877739]
[1735782088481,20.0,197.71,197.6,6.3549]
[1735782088685,20.0,197.71,197.59,0.75886546]
[1735782089181,20.0,197.71,197.56,0.7589113]
[1735782089980,20.0,197.71,197.57,23.776884]
[1735782090189,20.0,197.71,197.59,23.776884]
[1735782090682,20.0,197.71,197.58,0.75889536]
[1735782090863,20.0,197.71,197.56,0.75892866]
[1735782091058,20.0,197.67,197.55,6.3549]
[1735782091272,43.776884,197.7,197.55,6.3549]
[1735782093081,43.776884,197.7,197.54,1.5723]
[1735782093275,20.0,197.65,197.54,1.5723]
[1735782093680,4.61255673,197.72,197.59,20.0]
[1735782093871,1.6293,197.75,197.65,24.64127663]
[1735782094075,6.4025,197.79,197.67,24.64127663]
[1735782094387,20.0,197.76,197.67,24.64127663]
[1735782095088,6.4025,197.79,197.67,24.64127663]
[1735782095468,6.4025,197.79,197.66,31.75485438]
[1735782096189,6.4025,197.79,197.66,7.11357775]
[1735782096392,20.0,197.76,197.66,7.11357775]
[1735782096579,20.0,197.76,197.66,31.75485438]
[1735782097173,20.0,197.76,197.67,23.776884]
[1735782097375,20.0,197.76,197.68,0.75857726]
[1735782098492,6.4025,197.79,197.68,0.75857726]
[1735782099164,6.4025,197.79,197.67,23.776884]
[1735782100196,6.4025,197.79,197.68,0.75858596]
[1735782100494,1.6293,197.8,197.68,0.75858596]
[1735782102601,20.0,197.76,197.66,6.3549]
[1735782104684,20.0,197.76,197.63,1.5723]
[1735782106294,20.0,197.76,197.63,26.97236089]
[1735782108021,20.0,197.76,197.63,2.33108426]
[1735782110006,20.0,197.76,197.63,1.5723]
[1735782110717,23.776884,197.75,197.63,1.5723]
[1735782110941,20.0,197.72,197.63,1.5723]
[1735782111223,20.0,197.74,197.65,15.41300963]
[1735782111425,1.6293,197.8,197.67,15.41300963]
[1735782112125,1.6293,197.8,197.66,16.17166796]
[1735782112633,1.6293,197.8,197.64,39.9484925]
[1735782112929,20.0,197.76,197.63,16.98530963]
[1735782113723,20.0,197.76,197.63,1.5723]
[1735782115705,20.0,197.68,197.61,6.0739]
[1735782116325,20.0,197.72,197.61,6.0739]
[1735782118426,20.0,197.68,197.61,6.0739]
[1735782118942,20.0,197.72,197.61,6.0739]
[1735782119515,20.0,197.72,197.61,6.83271278]
[1735782120714,20.0,197.72,197.61,6.0739]
[1735782124241,20.0,197.72,197.61,6.83280217]
[1735782126629,20.0,197.72,197.61,6.0739]
[1735782127035,20.0,197.72,197.61,6.83271334]
[1735782127942,20.0,197.72,197.61,6.0739]
[1735782135047,20.0,197.68,197.61,6.0739]
[1735782135745,20.0,197.71,197.61,6.0739]
[1735782137733,24.33285397,197.71,197.61,6.0739]
[1735782137933,20.0,197.69,197.61,6.0739]
[1735782138339,25.76485156,197.69,197.61,6.0739]
[1735782140726,25.76485156,197.69,197.58,1.5535]
[1735782140931,20.0,197.65,197.58,1.5535]
[1735782141554,20.0,197.68,197.58,1.5535]
[1735782143241,43.776884,197.68,197.58,1.5535]
[1735782145555,49.54173556,197.68,197.58,1.5535]
[1735782146153,20.0,197.64,197.58,1.5535]
[1735782149063,5.76485156,197.67,197.58,1.5535]
[1735782152055,4.96283701,197.71,197.58,1.5535]
[1735782152257,5.76485156,197.73,197.6,23.776884]
[1735782153370,5.76485156,197.73,197.59,7.27653003]
[1735782153668,5.76485156,197.73,197.6,23.776884]
[1735782155775,5.76485156,197.73,197.59,7.27653003]
[1735782155776,20.0,197.7,197.59,7.27653003]
[1735782156082,20.0,197.7,197.59,6.5176]
[1735782156460,20.0,197.7,197.6,2.89085543]
[1735782157280,20.0,197.7,197.59,6.5176]
[1735782158079,20.0,197.7,197.6,24.53575101]
[1735782158265,10.72768857,197.73,197.61,1.5008]
[1735782166677,10.72768857,197.73,197.63,6.5086]
[1735782166984,15.91074854,197.78,197.67,1.5008]
[1735782167157,15.91074854,197.78,197.68,40.91025944]
[1735782167490,5.76485156,197.8,197.68,40.91025944]
[1735782168260,5.76485156,197.8,197.68,7.26713435]
[1735782169789,5.76485156,197.8,197.68,6.5086]
[1735782175294,20.0,197.77,197.68,6.5086]
[1735782181520,10.72768857,197.8,197.68,6.5086]
[1735782182134,5.76485156,197.8,197.69,23.776884]
[1735782182430,5.76485156,197.8,197.7,1.5366]
[1735782183326,5.76485156,197.8,197.71,6.1407]
[1735782186538,20.0,197.81,197.71,6.89914012]
[1735782186743,5.76485156,197.84,197.72,39.17960699]
[1735782186915,5.76485156,197.84,197.73,17.79103762]
[1735782187115,5.76485156,197.84,197.73,2.38831463]
[1735782188118,5.76485156,197.84,197.74,6.0204]
[1735782188309,5.76485156,197.84,197.75,23.776884]
[1735782188513,5.76485156,197.92,197.78,11.48306553]
[1735782188712,5.76485156,197.92,197.79,0.75811746]
[1735782188953,20.0,197.89,197.79,0.75811746]
[1735782189246,24.33285397,197.89,197.78,1.63]
[1735782189442,4.33285397,197.89,197.78,1.63]
[1735782190841,20.0,197.85,197.78,1.63]
[1735782191018,21.15229483,197.85,197.78,1.63]
[1735782194519,25.4851488,197.85,197.78,1.63]
[1735782194915,20.0,197.85,197.77,6.0204]
[1735782195144,38.72308602,197.88,197.77,6.0204]
[1735782195145,20.0,197.81,197.77,6.0204]
[1735782196537,20.0,197.81,197.73,1.63]
[1735782196855,20.0,197.77,197.73,1.63]
[1735782197830,20.0,197.77,197.71,6.0204]
[1735782199347,20.0,197.77,197.68,1.63]
[1735782199552,20.0,197.73,197.68,1.63]
[1735782205505,5.4851488,197.76,197.68,1.63]
[1735782206285,4.96283701,197.79,197.69,0.75867026]
[1735782206585,5.76485156,197.83,197.7,6.0959]
[1735782206793,20.0,197.8,197.71,0.75848305]
[1735782207654,20.0,197.8,197.7,6.0959]
[1735782208073,5.76485156,197.83,197.7,6.0959]
[1735782208607,20.0,197.8,197.7,6.0959]
[1735782209409,5.76485156,197.83,197.72,1.5176]
[1735782209601,5.76485156,197.83,197.73,0.75836952]
[1735782209799,5.76485156,197.83,197.75,6.0959]
[1735782209999,10.72768857,197.9,197.75,6.0959]
[1735782210301,10.72768857,197.9,197.75,6.85418593]
[1735782210805,20.0,197.87,197.75,6.85418593]
[1735782211107,20.0,197.87,197.76,23.776884]
[1735782211308,10.72768857,197.9,197.77,0.75822632]
[1735782211489,10.72768857,197.9,197.76,25.294484]